Cogmind - Beta 17 @@@ ROGUE MODE // 2026.06.26 @ 13:35:08 Player: kite Result: Self-destructed Performance ------------- Evolutions (2) 1000 Regions Visited (6) 1200 Robots Destroyed (7) 35 Value Destroyed (353) 353 Prototype IDs (23) 460 Alien Tech Used (0) 0 Bonus (770) 770 TOTAL SCORE: 3818 Bonus ------- Pacifist 270 Entered Garrisons 200 Aligned with FarCom 300 Cogmind --------- Core Integrity 141/550 Matter 298/300 Energy 160/160 System Corruption 4% Temperature Cool (0) Movement Walking (120) Location -8/Garrison Parts ------- > --- POWER (1) -------- Light Nuclear Core > --- PROPULSION (4) --- Aluminum Leg Aluminum Leg Aluminum Leg Aluminum Leg > --- UTILITY (3) ------ Small Storage Unit > --- WEAPON (3) ------- Great Axe Great Axe Great Axe > --- INVENTORY (8) ---- Improved Ion Engine Light Nuclear Core Light Nuclear Core Aluminum Leg Aluminum Leg Supersonic Drone Bay (1/1) Peak State ------------ > --- POWER ------------ Ion Engine > --- PROPULSION ------- Improved Carbon-fiber Leg Improved Carbon-fiber Leg Improved Carbon-fiber Leg Improved Carbon-fiber Leg > --- UTILITY ---------- Small Storage Unit Heavy Armor Plating > --- WEAPON ----------- Great Axe Great Axe Great Axe > --- INVENTORY -------- Aluminum Leg Aluminum Leg Supersonic Drone Bay Great Axe [Rating: 37] Favorites ----------- Power Light Ion Engine Engine Light Ion Engine Power Core Light Nuclear Core Propulsion Light Treads Treads Light Treads Leg Improved Carbon-fiber Leg Utility Core Shielding Storage Small Storage Unit Protection Core Shielding Weapon Great Axe Slashing Weapon Great Axe Build | -11 -10 -10 -10 -9 -8 -8 ------- Run | Yrd Mat Min Exi Min Mat Gar Slots Evolved 4 | . . . . . 4 . Power . | . . . . . . . Propulsion 2 | . . . . . 2 . Utility 1 | . . . . . 1 . Weapon 1 | . . . . . 1 . Parts Attached 25 | 4 1 . . . 9 11 Power 4 | 1 . . . . 1 2 Engine 2 | 1 . . . . 1 . Core 2 | . . . . . . 2 Reactor . | . . . . . . . Propulsion 14 | 2 . . . . 4 8 Treads 2 | 2 . . . . . . Leg 12 | . . . . . 4 8 Wheel . | . . . . . . . Hover . | . . . . . . . Flight . | . . . . . . . Utility 3 | 1 1 . . . 1 . Device . | . . . . . . . Storage 1 | 1 . . . . . . Processor . | . . . . . . . Hackware . | . . . . . . . Protection 2 | . 1 . . . 1 . Artifact . | . . . . . . . Weapon 4 | . . . . . 3 1 Energy Gun . | . . . . . . . Energy Cannon . | . . . . . . . Ballistic Gun . | . . . . . . . Ballistic Cannon . | . . . . . . . Launcher . | . . . . . . . Special Weapon . | . . . . . . . Impact Weapon . | . . . . . . . Slashing Weapon 4 | . . . . . 3 1 Piercing Weapon . | . . . . . . . Special Melee Weapon . | . . . . . . . Unidentified Prototypes . | . . . . . . . Parts Lost 10 | . 1 . . . . 9 Power 2 | . 1 . . . . 1 Propulsion 6 | . . . . . . 6 Utility 1 | . . . . . . 1 Weapon 1 | . . . . . . 1 Highest Loss Streak 9 | . 1 . . . . 9 To Critical Strikes . | . . . . . . . Average Backups 3 | 1 4 4 4 5 4 3 Power . | . 1 1 1 1 . . Propulsion 1 | . 2 2 2 2 2 1 Utility 1 | . 1 1 1 2 1 1 Weapon . | . . . . . . . Tool/Special . | . . . . . . . Unused Backups 2 | . . . . . . 2 Power 1 | . . . . . . 1 Propulsion . | . . . . . . . Utility 1 | . . . . . . 1 Weapon . | . . . . . . . Tool/Special . | . . . . . . . Average Slot Usage (%) 53 | . 43 42 42 42 67 74 Engine 3 | . 11 . . . 5 3 Treads 18 | . 27 28 28 28 6 . Leg 9 | . . . . . 22 27 Storage 2 | . . . . . 5 9 Protection 8 | . 4 14 14 14 9 3 Slashing Weapon 9 | . . . . . 19 27 Peak Build Rating 37 | 4 4 3 4 4 37 37 Average Rating 11 | 2 3 3 3 4 26 26 On Entrance 7 | . 3 3 3 4 4 37 Avg Prop Armor Cover (%) 39 | 34 35 41 41 41 40 . Naked Turns 1 | . 1 . . . . . Heaviest Build 37 | 5 4 1 1 1 37 37 Greatest Support 72 | 40 40 3 3 40 72 72 Greatest Overweight (x) 4 | 1 1 . . . 4 2 Average Overweight (x) . | . . . . . . . Largest Inventory Capacity 8 | 8 5 5 5 5 8 8 Average Capacity 5 | 5 5 5 5 5 6 8 Most Carried 6 | 4 4 4 5 5 5 6 Average Carried 4 | 1 4 4 4 5 4 3 Final Capacity 8 | 5 5 5 5 5 8 8 Final Carried 6 | 4 4 4 5 5 4 6 Class Distribution -------------------- 100% | Mutant Dominant Class ---------------- Mutant | -10/Materials Mutant | -10/Mines Mutant | -10/Exiles Mutant | -9/Mines Mutant | -8/Materials Mutant | -8/Garrison Resources | -11 -10 -10 -10 -9 -8 -8 ----------- Run | Yrd Mat Min Exi Min Mat Gar Matter Collected 463 | 174 . . . . 3 286 Remotely . | . . . . . . . Salvage Created 327 | . . . . . . 327 Parts 16 | . . . . . . 16 Haulers Intercepted . | . . . . . . . Recyclers Shooed . | . . . . . . . Parts Field Recycled . | . . . . . . . Retrieved Matter . | . . . . . . . Parts Self-Destructed . | . . . . . . . Prevented . | . . . . . . . Parts Restored . | . . . . . . . Kills | -11 -10 -10 -10 -9 -8 -8 ------- Run | Yrd Mat Min Exi Min Mat Gar Combat Hostiles Destroyed 7 | . . . . . . 7 Melee 7 | . . . . . . 7 Classes Destroyed 3 | . . . . . . 3 Grunt 4 | . . . . . . 4 Sentry 1 | . . . . . . 1 Programmer 2 | . . . . . . 2 Best Kill Streak 5 | . . . . . . 5 Combat Bots Only 5 | . . . . . . 5 Max Kills in Single Turn 1 | . . . . . . 1 Gunslinging . | . . . . . . . Exploded . | . . . . . . . Melee 1 | . . . . . . 1 Uniques/NPCs Destroyed . | . . . . . . . Combat | -11 -10 -10 -10 -9 -8 -8 -------- Run | Yrd Mat Min Exi Min Mat Gar Hostile Shots Fired 192 | . 16 4 . 3 32 137 Missed 58 | . 5 1 . 2 14 36 Hits 134 | . 11 3 . 1 18 101 Projectile 134 | . 11 3 . 1 18 101 AOE 1 | . . . . . 1 . Critical Strikes 7 | . . . . . 1 6 Damage Taken 1967 | . 122 41 . 10 268 1526 Core 447 | . 38 . . . 26 383 Absorbed by Shields 15 | . . . . . . 15 Redirected to Shielding 8 | . 8 . . . . . Core Remaining (%) 92 | 100 . . . 84 . . Volleys Fired . | . . . . . . . Largest . | . . . . . . . Hottest . | . . . . . . . Shots Fired . | . . . . . . . Gun . | . . . . . . . Cannon . | . . . . . . . Launcher . | . . . . . . . Special . | . . . . . . . Kinetic . | . . . . . . . Thermal . | . . . . . . . Explosive . | . . . . . . . Electromagnetic . | . . . . . . . Robot Hit Streak . | . . . . . . . Robot Miss Streak . | . . . . . . . Penetration Max . | . . . . . . . Secondary Targets . | . . . . . . . Shots Hit Robots 35 | . . . . . 3 32 Core Hits 11 | . . . . . . 11 Critical Kills . | . . . . . . . Critical Parts Destroyed . | . . . . . . . Critical Strikes 7 | . . . . . . 7 Sever 7 | . . . . . . 7 Melee Attacks 50 | . . . . . 6 44 Impact . | . . . . . . . Slashing 50 | . . . . . 6 44 Piercing . | . . . . . . . Sneak Attacks 1 | . . . . . 1 . Combat Hostiles . | . . . . . . . Follow-up Attacks 14 | . . . . . 1 13 Damage Inflicted 1349 | . 2 . . . 130 1217 Guns . | . . . . . . . Cannons . | . . . . . . . Explosions . | . . . . . . . Melee 1340 | . . . . . 130 1210 Ramming 9 | . 2 . . . . 7 Kinetic . | . . . . . . . Thermal . | . . . . . . . Explosive . | . . . . . . . Electromagnetic . | . . . . . . . Impact . | . . . . . . . Slashing 1340 | . . . . . 130 1210 Piercing . | . . . . . . . Highest Corruption 4 | . . . . . 2 4 Average Corruption 3 | . . . . . 2 3 Corruption Purged . | . . . . . . . Corruption Blocked . | . . . . . . . Effects 2 | . . . . . . 2 Message Errors 1 | . . . . . . 1 Alerts 1 | . . . . . . 1 Overload Shots . | . . . . . . . Overflow Damage . | . . . . . . . Projectiles . | . . . . . . . Explosions . | . . . . . . . Melee . | . . . . . . . Knockbacks . | . . . . . . . Impact . | . . . . . . . Kinetic . | . . . . . . . Secondary . | . . . . . . . Self-Inflicted Damage . | . . . . . . . Shots . | . . . . . . . Rammed 3 | . 2 . . 1 . . Targets Rammed 5 | . 2 . . 1 . 2 Kicked 2 | . . . . . . 2 Crushed . | . . . . . . . Highest Temperature 21 | . . . . . . 21 Average Temperature 9 | . . . . . . 9 Received Heat Transfer 892 | . 66 24 . 6 9 787 Siege Activations . | . . . . . . . Martial Activations . | . . . . . . . Shielding Activations . | . . . . . . . Robots Disrupted . | . . . . . . . Combat Hostiles . | . . . . . . . Robots Corrupted . | . . . . . . . Combat Hostiles . | . . . . . . . Parts Fried . | . . . . . . . Impact Corruptions . | . . . . . . . Robots Melted . | . . . . . . . Combat Hostiles . | . . . . . . . Parts Melted . | . . . . . . . Heat Transferred . | . . . . . . . Parts Sabotaged . | . . . . . . . Parts Stolen . | . . . . . . . Parts Stripped . | . . . . . . . Power Chain Reactions . | . . . . . . . Alert | -11 -10 -10 -10 -9 -8 -8 ------- Run | Yrd Mat Min Exi Min Mat Gar Maximum Alert Level . | . . . . . . . Low Security (%) 100 | 100 100 100 . 100 100 100 Level 1 . | . . . . . . . Level 2 . | . . . . . . . Level 3 . | . . . . . . . Level 4 . | . . . . . . . Level 5 . | . . . . . . . High Security . | . . . . . . . Max Security . | . . . . . . . Peak Influence 80 | . 80 51 . 45 5 70 Initial 31 | . . 31 . . 5 . Average 18 | . 8 31 . 21 . 37 Influence Increases 337 | . 102 30 . 45 . 160 Destroy 0b10 Robot/C 140 | . . . . . . 140 Successful Hack 12 | . 12 . . . . . Destroy Structure 5 | . . . . . . 5 Lose Combat Pursuer 180 | . 90 30 . 45 . 15 Influence Decreases 267 | . 22 89 21 30 15 90 Entered New Map 80 | . . 49 21 . 10 . Time Decay 97 | . 22 40 . 30 5 . Lost Part 90 | . . . . . . 90 Squads Dispatched 3 | . 2 . . . 1 . Investigation 1 | . 1 . . . . . Extermination . | . . . . . . . Reinforcement 2 | . 1 . . . 1 . Assault . | . . . . . . . Garrison . | . . . . . . . Intercept . | . . . . . . . Searches Triggered . | . . . . . . . Construction Impeded . | . . . . . . . Haulers Reinforced . | . . . . . . . Active Scanning Responses . | . . . . . . . Cargo Convoy Interrupts . | . . . . . . . Stealth | -11 -10 -10 -10 -9 -8 -8 --------- Run | Yrd Mat Min Exi Min Mat Gar Distress Signals 2 | . 1 . . . 1 . Communications Jammed . | . . . . . . . Distress Signals . | . . . . . . . Times Spotted 26 | . 6 2 . 3 8 7 Peak Tracking Total 8 | . 6 2 . 3 8 6 Tactical Retreats 5 | . 2 1 . 1 . 1 Traps | -11 -10 -10 -10 -9 -8 -8 ------- Run | Yrd Mat Min Exi Min Mat Gar Traps Triggered 9 | . 5 . . . 1 3 Indirectly . | . . . . . . . Trap Hack Attempts . | . . . . . . . Triggered . | . . . . . . . Disarmed . | . . . . . . . Reprogrammed . | . . . . . . . Reused . | . . . . . . . Traps Extracted . | . . . . . . . Installed . | . . . . . . . Triggered . | . . . . . . . Machines | -11 -10 -10 -10 -9 -8 -8 ---------- Run | Yrd Mat Min Exi Min Mat Gar Machines Disabled . | . . . . . . . Max in Single Turn . | . . . . . . . Machines Repaired . | . . . . . . . Machines Dismantled . | . . . . . . . Machines Sabotaged . | . . . . . . . Overloaded Fab Kills . | . . . . . . . Hacking | -11 -10 -10 -10 -9 -8 -8 --------- Run | Yrd Mat Min Exi Min Mat Gar Machines Accessed 4 | . 2 . 1 . 1 . Terminals 2 | . 2 . . . . . Fabricators . | . . . . . . . Repair Stations . | . . . . . . . Recycling Units . | . . . . . . . Scanalyzers . | . . . . . . . Garrison Access 1 | . . . . . 1 . Total Hacks 7 | . 4 . 1 . 2 . Successful 4 | . 2 . 1 . 1 . Failed 3 | . 2 . . . 1 . Catastrophic . | . . . . . . . Database Lockouts . | . . . . . . . Manual 5 | . 4 . 1 . . . Terminals 4 | . 4 . . . . . Fabricators . | . . . . . . . Repair Stations . | . . . . . . . Recycling Units . | . . . . . . . Scanalyzers . | . . . . . . . Garrison Access 2 | . . . . . 2 . Terminal Hacks 2 | . 1 . 1 . . . Registered Components 1 | . 1 . . . . . Proto ID Catalog 1 | . . . 1 . . . Fabricator Hacks . | . . . . . . . Repair Station Hacks . | . . . . . . . Recycling Unit Hacks . | . . . . . . . Scanalyzer . | . . . . . . . Garrison Access Hacks 1 | . . . . . 1 . Unlock Access 1 | . . . . . 1 . Unauthorized Hacks 1 | . 1 . . . . . Terminals 1 | . 1 . . . . . Botnet 1 | . 1 . . . . . Fabricators . | . . . . . . . Repair Stations . | . . . . . . . Recycling Units . | . . . . . . . Scanalyzers . | . . . . . . . Garrison Access . | . . . . . . . Data Cores Recovered . | . . . . . . . Used . | . . . . . . . Hacking Detections 2 | . 2 . . . . . Full Trace Events . | . . . . . . . Feedback Events . | . . . . . . . Feedback Blocked . | . . . . . . . Robot Schematics Acquired . | . . . . . . . Robots Built . | . . . . . . . Authchips . | . . . . . . . Time . | . . . . . . . Total Robot Build Rating . | . . . . . . . Part Schematics Acquired . | . . . . . . . Parts Built . | . . . . . . . Authchips . | . . . . . . . Time . | . . . . . . . Total Part Build Rating . | . . . . . . . Part Studies Acquired . | . . . . . . . Parts Repaired . | . . . . . . . Time . | . . . . . . . Parts Recycled . | . . . . . . . Recycled Matter . | . . . . . . . Retrieved Matter . | . . . . . . . Retrieved Components . | . . . . . . . Parts Scanalyzed . | . . . . . . . Part Schematics Acquired . | . . . . . . . Parts Damaged . | . . . . . . . Bothacking | -11 -10 -10 -10 -9 -8 -8 ------------ Run | Yrd Mat Min Exi Min Mat Gar Used RIF Installer . | . . . . . . . Robots Hacked . | . . . . . . . Non-combat . | . . . . . . . Combat . | . . . . . . . Robot Hacks Applied . | . . . . . . . Relay Couplers Released . | . . . . . . . Fabnet Peak Effective % . | . . . . . . . Robots Rewired . | . . . . . . . Allies Hacked . | . . . . . . . Hacks Repelled . | . . . . . . . Allies | -11 -10 -10 -10 -9 -8 -8 -------- Run | Yrd Mat Min Exi Min Mat Gar Total Allies 1 | . . 1 . . . . Largest Group 1 | . . 1 . . . . Highest-Rated Group 31 | . . 31 . . . . Highest-Rated Ally 31 | . . 31 . . . . Total Orders . | . . . . . . . Ally Attacks . | . . . . . . . Total Damage . | . . . . . . . Kills . | . . . . . . . Allies Corrupted . | . . . . . . . Allies Melted . | . . . . . . . Intel | -11 -10 -10 -10 -9 -8 -8 ------- Run | Yrd Mat Min Exi Min Mat Gar Active Infowar (turns) . | . . . . . . . Robot Analysis Total . | . . . . . . . Derelict Logs Recovered 2 | . . 1 . 1 . . Drone Launches . | . . . . . . . Drone Recoveries . | . . . . . . . Exploration | -11 -10 -10 -10 -9 -8 -8 ------------- Run | Yrd Mat Min Exi Min Mat Gar Turns Passed 798 | 46 152 99 125 82 128 166 Spaces Moved 1022 | 55 232 197 248 137 103 50 Core 901 | 48 223 197 248 133 52 . Treads 20 | 7 9 . . 4 . . Legs 101 | . . . . . 51 50 Wheels . | . . . . . . . Hover . | . . . . . . . Flight . | . . . . . . . Fastest Speed 50 | 50 50 50 50 50 50 120 Average Speed 61 | 66 59 50 50 53 90 129 Slowest Speed 260 | 160 160 50 50 160 250 260 Overloaded Moves . | . . . . . . . Propulsion Burnouts . | . . . . . . . Robots Hopped . | . . . . . . . Potential Cave-ins . | . . . . . . . Cave-ins Triggered . | . . . . . . . Exploration Rate (%) 31 | 4 36 56 61 41 16 7 Regions Visited 6 Branch Regions 3 Pre-discovered Areas 1 | . . 1 . . . . Known Exits Taken 1 | . . . . . 1 . Unknown Exits Taken 5 | 1 1 1 1 1 . . Scrap Searched 1 | . . . . 1 . . Spaces Dug . | . . . . . . . Terrain Destroyed . | . . . . . . . Melee . | . . . . . . . Projectile . | . . . . . . . AOE . | . . . . . . . Terrain Rammed . | . . . . . . . Walls Destroyed . | . . . . . . . Machines Disabled . | . . . . . . . Actions | -11 -10 -10 -10 -9 -8 -8 --------- Run | Yrd Mat Min Exi Min Mat Gar Total 1110 | 62 241 196 248 144 126 93 Wait 12 | . . . . 7 4 1 Move 1017 | 54 231 196 247 136 103 50 Hop . | . . . . . . . Pick Up 7 | 3 . . 1 . 1 2 Fast Attach 25 | 4 8 . . . 8 5 Attach 5 | . . . . . 2 3 Detach 1 | 1 . . . . . . Swap 3 | . . . . . . 3 Drop 3 | . . . . . 3 . Fire . | . . . . . . . Melee 32 | . . . . . 5 27 Ram . | . . . . . . . Kick 2 | . . . . . . 2 Crush 3 | . 2 . . 1 . . Escape Stasis . | . . . . . . . Rewire . | . . . . . . . Trap . | . . . . . . . Miscellaneous . | . . . . . . . Route ------- -11/Scrapyard -10/Materials (discovered 2 exits: [*Mat] / [*Min]) -10/Mines (discovered 2 exits: [*Mat] / *Exi) -10/Exiles -9/Mines -8/Materials (discovered 3 exits: Fac x2 / Gar) -8/Garrison History --------- Turn | Location | Event 7 | -11/Scrapyard | Discovered new exit (range 15) 47 | -11/Scrapyard | Entered Materials 82 | -10/Materials | Discovered new exit (range 8) 129 | -10/Materials | Discovered new exit (range 3) 199 | -10/Materials | Entered Mines 214 | -10/Mines | Discovered new exit (range 12) 247 | -10/Mines | Met a Derelict bent on vengeance 274 | -10/Mines | Learned location of Zion (-7) 279 | -10/Mines | Received a Mining Laser from a helpful Derelict 296 | -10/Mines | Deemed a non-threat by the Exiles lab entrance 296 | -10/Mines | Discovered new exit (range 5) 298 | -10/Mines | Entered Exiles 311 | -10/Exiles | Met 8R-AWN 316 | -10/Exiles | Build established: Mutant 320 | -10/Exiles | Met EX-HEX 333 | -10/Exiles | Met EX-BIN 340 | -10/Exiles | Aligned with FarCom system 341 | -10/Exiles | Given EX-Vault access code 353 | -10/Exiles | Opened EX-Vault 356 | -10/Exiles | Found Supersonic Drone Bay 366 | -10/Exiles | Warned to stay clear of 0b10 Research branches 381 | -10/Exiles | Met EX-DEC 417 | -10/Exiles | Discovered new exit (range 12) 423 | -10/Exiles | Left Exiles lab with Supersonic Drone Bay 423 | -10/Exiles | Entered Mines 468 | -9/Mines | Learned 4 Materials zone layouts 503 | -9/Mines | Discovered new exit (range 5) 505 | -9/Mines | Entered Materials 505 | -8/Materials | Evolved 4 slots: Propulsion x2, Utility x1, Weapon x1 506 | -8/Materials | Identified exit to Factory 633 | -8/Materials | Identified exit to Garrison 633 | -8/Materials | Entered Garrison 717 | -8/Garrison | Core integrity fell below 50% 781 | -8/Garrison | Lost 9 parts (1p6n1u1w) 799 | -8/Garrison | Self-destructed Last Messages --------------- 00736_ Aluminum Leg destroyed. 00737_ G-47 Trooper Aluminum Leg severed. 00737_ Great Axe follow-up attack on G-47 Trooper. 00740_ G-47 Trooper Aluminum Leg severed. 00745_ G-47 Trooper destroyed. 00748_ Acquired 45 matter. 00750_ Aluminum Leg destroyed. 00750_ G-47 Trooper Aluminum Leg severed. 00750_ Great Axe follow-up attack on G-47 Trooper. 00754_ G-47 Trooper destroyed. 00757_ Acquired Aluminum Leg. 00771_ Triggered Alarm Trap. 00771_ An alarm sounds. 00773_ Acquired Aluminum Leg. 00784_ Acquired 83 matter. 00785_ Acquired 91 matter. 00792_ Acquired Lgt. Nuclear Core. 00795_ Acquired 8 matter. Map ----- +----------------------------------------------------+ | ??????????????????????????????????????????????? | | ??????????????????????????????????????????????? | | ??????????????????????????????????????????????? | | ??????????????????????????????????????????????? | | ??????????????????????????????????????????????? | | ??????????????????????????????????????????????? | | ??????????????????????????????????????????????? | | ??????????????????????????????????????????????? | | ??????????????????????????????????????????????? | | ??????????????????????????????????????????????? | | ??????????????????????????????????????????????? | | ??????????????????????????????????????????????? | | ??????????????????????????????????????????????? | | ??????????????????????????????????????????????? | | ??????????????????????????????????????????????? | | ??????????????????????????????????????????????? | | ??????????????????????????????????????????????? | | ??????????????????????????????????????????????? | | ?????????###??????????????????????????????????? | | ????????## ######################T## #????????? | | ????????#[=! ???????? | | ????????# [ |= ???????? | | ????????# [ ! ???????? | | ????????# ########+;++############ ?????????? | | ????????# #??????# *[#?????????????????????? | | ????????#####??????##%@##?????????????????????? | | ????????????????????#=[#??????????????????????? | | ????????????????????# #??????????????????????? | | ????????????????????# #??????????????????????? | | ????????????????????! !??????????????????????? | | ????????????????????! !#?????????????????????? | | ???????????????????#! !#?????????????????????? | | ???????????????????#! !#?????????????????????? | | ???????????????????### ##?????????????????????? | | ?????????????????????? #??????????????????????? | | ?????????????????????? ??????????????????????? | | ??????????????????????##??????????????????????? | | ??????????????????????????????????????????????? | | ??????????????????????????????????????????????? | | ??????????????????????????????????????????????? | | ??????????????????????????????????????????????? | | ??????????????????????????????????????????????? | | ??????????????????????????????????????????????? | | ??????????????????????????????????????????????? | | ??????????????????????????????????????????????? | | ??????????????????????????????????????????????? | | ??????????????????????????????????????????????? | | ??????????????????????????????????????????????? | | ??????????????????????????????????????????????? | | ??????????????????????????????????????????????? | +----------------------------------------------------+ Best States ------------- Heat Dissipation 31 Energy Generation 14 Energy Capacity 250 Matter Stores 290 Matter Capacity 300 Sight Range 16 Terrain Scan Density 10 Armor Coverage 600 Core Shielding 20 Evasion (%) 55 Recoil Reduction 2 Item Schematics ----------------- None Robot Schematics ------------------ None Fabricated ------------ Nothing Repaired ---------- Nothing Studied --------- None Alien Tech Used ----------------- None Achievements -------------- None Challenges ------------ None Game ------ Seed PlasmaShockboltProcsplitter Manual? 0 Play Time 00:08:45 Cumulative 396.5 hours Start 2026.06.26 @ 13:25:35 End 2026.06.26 @ 13:35:08 Sessions 1 Manual Loads 0 Difficulty Rogue Special Mode None Game No. 365 Rogue 365 Adventurer 0 Explorer 0 Win Type - Total 9 Types 6/0/2/0/0/0/0/0/0/1 Lore% 60 Gallery% 67 Achievement% 63 Wizard Run 0 Options --------- Layout 1 ASCII 0 Keyboard 0 Movement Mouse Keybinds 0 Fullscreen 2 Font 24/Smallcaps Map View 25x17 Zoom Use 46% Tactical HUD 1 Map Filters NONE Filters NONE Steam 1 RUN: cd4726ec-8284-496b-8021-8f790ce219db